bitfinex/quotes_SOLUSD_20230120
["timestamp","ask_amount","ask_price","bid_price","bid_amount"]
[1674250227551,20.0,23.982,23.962,17.0]
[1674250227782,20.0,23.983,23.962,17.0]
[1674250227988,31.28,23.982,23.963,19.01976227]
[1674250228207,109.339,23.985,23.963,19.01976227]
[1674250228208,109.339,23.985,23.964,37.0]
[1674250228400,109.339,23.985,23.965,10.96]
[1674250228730,109.339,23.985,23.966,37.0]
[1674250228923,109.339,23.985,23.967,10.96]
[1674250229134,109.339,23.985,23.966,20.0]
[1674250229352,10.0,23.984,23.966,20.0]
[1674250229975,109.339,23.985,23.966,20.0]
[1674250230191,109.339,23.985,23.967,10.0]
[1674250230405,109.339,23.985,23.968,17.96]
[1674250230913,109.339,23.985,23.97,15.86]
[1674250231124,109.339,23.985,23.971,17.96]
[1674250231351,10.0,23.984,23.971,0.96]
[1674250231552,10.0,23.984,23.966,20.0]
[1674250231757,20.0,23.983,23.962,10.0]
[1674250231963,31.28,23.982,23.96,25.73]
[1674250232194,31.28,23.983,23.961,20.0]
[1674250232401,10.0,23.984,23.962,10.0]
[1674250232594,10.0,23.984,23.963,20.0]
[1674250232805,31.28,23.983,23.963,20.0]
[1674250233030,31.28,23.983,23.964,0.96]
[1674250233222,10.0,23.984,23.964,10.96]
[1674250233438,31.28,23.983,23.965,37.0]
[1674250233649,41.28,23.984,23.966,0.96]
[1674250234301,41.28,23.984,23.966,10.96]
[1674250234613,41.28,23.984,23.967,17.0]
[1674250234930,41.28,23.984,23.968,0.96]
[1674250235121,41.28,23.984,23.967,37.0]
[1674250236077,41.28,23.984,23.967,20.0]
[1674250236273,41.28,23.984,23.965,20.0]
[1674250236823,41.28,23.984,23.966,10.0]
[1674250237237,41.28,23.984,23.967,20.0]
[1674250237991,41.28,23.984,23.964,10.0]
[1674250238308,41.28,23.984,23.962,10.0]
[1674250238309,10.0,23.982,23.962,10.0]
[1674250238518,51.28,23.981,23.963,17.0]
[1674250238732,51.28,23.981,23.964,10.0]
[1674250238919,51.28,23.981,23.962,10.0]
[1674250239349,10.0,23.98,23.962,10.0]
[1674250239565,51.28,23.979,23.962,10.0]
[1674250239776,51.28,23.979,23.96,10.0]
[1674250239987,10.0,23.978,23.96,10.0]
[1674250240202,31.29,23.977,23.96,10.0]
[1674250240400,31.28,23.978,23.96,10.0]
[1674250241148,51.71576951,23.977,23.951,10.0]
[1674250241460,30.79,23.976,23.951,10.0]
[1674250241655,37.96,23.975,23.951,10.0]
[1674250241864,31.29,23.974,23.951,10.0]
[1674250242066,17.0,23.973,23.951,10.0]
[1674250242277,61.29,23.972,23.951,10.0]
[1674250242493,17.0,23.971,23.951,10.0]
[1674250242704,10.0,23.969,23.951,10.0]
[1674250242914,20.0,23.968,23.95,10.0]
[1674250243130,17.0,23.967,23.95,10.0]
[1674250243344,48.3,23.967,23.95,10.0]
[1674250243546,31.3,23.967,23.95,10.0]
[1674250243971,51.3,23.968,23.95,10.0]
[1674250244197,10.0,23.967,23.95,10.0]
[1674250244509,17.0,23.966,23.949,10.0]
[1674250244722,17.0,23.966,23.946,10.0]
[1674250244923,0.96,23.965,23.946,10.0]
[1674250245255,10.96,23.965,23.946,10.0]
[1674250245443,10.96,23.965,23.947,20.0]
[1674250245444,48.3,23.964,23.947,20.0]
[1674250246396,48.3,23.964,23.948,10.0]
[1674250246606,17.0,23.964,23.948,10.0]
[1674250246819,17.0,23.965,23.948,10.0]
[1674250247014,10.96,23.964,23.948,10.0]
[1674250247226,17.0,23.963,23.948,10.0]
[1674250247438,0.96,23.962,23.948,10.0]
[1674250247653,17.0,23.963,23.948,10.0]
[1674250248204,17.0,23.963,23.947,20.0]
[1674250248705,17.0,23.963,23.948,10.0]
[1674250250403,17.0,23.965,23.948,10.0]
[1674250250724,31.3,23.967,23.948,10.0]
[1674250250937,128.4091,23.972,23.95,15.87]
[1674250251121,128.4091,23.972,23.952,10.0]
[1674250251122,20.0,23.97,23.952,10.0]
[1674250251332,20.0,23.97,23.953,17.0]
[1674250251541,20.0,23.97,23.954,0.96]
[1674250251751,119.8199,23.971,23.954,10.96]
[1674250252094,118.4091,23.972,23.956,10.0]
[1674250252275,118.4091,23.972,23.957,20.96]
[1674250252711,118.4091,23.972,23.958,10.0]
[1674250252916,118.4091,23.972,23.959,17.96]
[1674250253127,41.28,23.978,23.96,15.85]
[1674250253325,115.8027,23.979,23.961,17.96]
[1674250253535,20.0,23.978,23.961,17.96]
[1674250253976,10.0,23.977,23.961,0.96]
[1674250254374,10.0,23.977,23.959,17.96]
[1674250254819,10.0,23.977,23.96,10.0]
[1674250255012,10.0,23.977,23.961,17.96]
[1674250255758,30.0,23.978,23.961,0.96]
[1674250255966,10.0,23.976,23.961,0.96]
[1674250256165,10.0,23.976,23.961,17.96]
[1674250256792,10.0,23.976,23.957,20.0]
[1674250257026,17.0,23.975,23.958,0.96]
[1674250257209,10.0,23.973,23.958,0.96]
[1674250257650,17.0,23.972,23.954,20.0]
[1674250257849,17.0,23.972,23.916,70.81193926]
[1674250257850,10.0,23.971,23.95,10.0]
[1674250258066,69.25,23.97,23.947,10.0]
[1674250258469,10.0,23.969,23.947,10.0]
[1674250258682,69.26,23.968,23.947,10.0]
[1674250258898,10.0,23.967,23.947,10.0]
[1674250259100,10.0,23.965,23.947,10.0]
[1674250259322,17.0,23.964,23.947,10.0]
[1674250259528,31.3,23.966,23.947,10.0]
[1674250259740,17.0,23.965,23.947,10.0]
[1674250259960,10.0,23.963,23.947,10.0]
[1674250260275,20.0,23.962,23.947,10.0]
[1674250260691,10.0,23.963,23.947,10.0]
[1674250261016,17.0,23.965,23.949,0.96]
[1674250261220,31.3,23.964,23.949,0.96]
[1674250261428,17.0,23.965,23.949,0.96]
[1674250262050,31.3,23.964,23.949,0.96]
[1674250262370,17.0,23.965,23.949,0.96]
[1674250262794,31.3,23.966,23.949,17.96]
[1674250263008,31.3,23.967,23.949,17.96]
[1674250263219,112.9332,23.968,23.95,25.86]
[1674250263428,112.9332,23.968,23.951,17.96]
[1674250263744,31.29,23.975,23.952,30.0]
[1674250263951,114.9951,23.979,23.96,15.85]
[1674250264153,51.28,23.978,23.96,15.85]
[1674250264361,51.28,23.978,23.961,27.96]
[1674250264899,20.0,23.978,23.961,27.96]
[1674250265093,20.0,23.978,23.962,10.0]
[1674250265306,20.0,23.978,23.963,17.96]
[1674250265515,20.0,23.978,23.964,10.0]
[1674250265727,20.0,23.978,23.965,17.96]
[1674250265940,20.0,23.978,23.966,10.0]
[1674250266151,20.0,23.978,23.967,0.96]
[1674250266903,20.0,23.978,23.966,10.0]
[1674250267090,10.0,23.977,23.962,10.0]
[1674250267725,10.0,23.977,23.963,17.0]
[1674250267936,61.28,23.978,23.963,17.0]
[1674250268165,51.28,23.978,23.963,17.0]
[1674250268478,20.0,23.978,23.964,10.0]
[1674250268685,31.29,23.977,23.964,0.96]
[1674250268892,10.0,23.977,23.964,0.96]
[1674250269316,51.28,23.978,23.964,0.96]
[1674250269516,10.0,23.977,23.964,0.96]
[1674250269720,10.0,23.977,23.963,0.96]
[1674250271824,10.0,23.975,23.963,0.96]
[1674250272037,10.0,23.975,23.962,0.96]
[1674250272245,31.29,23.976,23.962,0.96]
[1674250272667,31.29,23.976,23.955,10.0]
[1674250272888,10.0,23.975,23.958,10.0]
[1674250273414,31.29,23.974,23.958,10.0]
[1674250273622,31.29,23.976,23.958,10.0]
[1674250274025,31.29,23.976,23.96,10.0]
[1674250274259,31.29,23.976,23.961,0.96]
[1674250274445,31.29,23.976,23.955,10.0]
[1674250274651,31.29,23.976,23.954,62.63784111]
[1674250274652,20.0,23.975,23.954,62.63784111]
[1674250274887,10.0,23.973,23.952,10.0]
[1674250275076,10.0,23.973,23.951,10.0]
[1674250275077,185.3708,23.972,23.951,10.0]
[1674250275509,185.3708,23.972,23.95,10.0]
[1674250275721,10.0,23.971,23.95,10.0]
[1674250275916,69.25,23.97,23.95,10.0]
[1674250276350,10.0,23.969,23.95,10.0]
[1674250276551,10.0,23.969,23.947,10.0]
[1674250276552,69.26,23.968,23.948,10.0]
[1674250276762,10.0,23.967,23.944,10.0]
[1674250276981,69.26,23.966,23.944,10.0]
[1674250277200,10.0,23.965,23.944,10.0]
[1674250277387,68.3,23.964,23.944,10.0]
[1674250278449,48.3,23.964,23.944,10.0]
[1674250278677,31.3,23.966,23.945,20.96]
[1674250278889,31.3,23.967,23.946,10.0]
[1674250279096,31.3,23.967,23.947,37.96]
[1674250279289,31.3,23.967,23.948,10.0]
[1674250279627,31.3,23.967,23.949,17.96]
[1674250279814,31.3,23.967,23.95,10.0]
[1674250280018,31.3,23.967,23.951,17.96]
[1674250280453,31.3,23.967,23.952,10.0]
[1674250280761,31.3,23.967,23.953,0.96]
[1674250282754,10.0,23.965,23.948,10.0]
[1674250282969,17.0,23.964,23.948,10.0]
[1674250283183,31.3,23.963,23.948,10.0]
[1674250283390,17.0,23.962,23.948,10.0]
[1674250283713,31.31,23.961,23.948,10.0]
[1674250283924,31.3,23.967,23.95,15.87]
[1674250284134,31.29,23.971,23.95,15.87]
[1674250284545,31.29,23.971,23.951,10.0]
[1674250284880,109.0128,23.975,23.952,37.96]
[1674250285191,109.0128,23.975,23.953,52.63784111]
[1674250285388,109.0128,23.975,23.954,37.96]
[1674250285601,109.0128,23.975,23.955,10.0]
[1674250285810,109.0128,23.975,23.956,37.96]
[1674250286155,109.0128,23.975,23.957,10.0]
[1674250286343,109.0128,23.975,23.959,10.0]
[1674250286537,31.28,23.979,23.96,33.83]
[1674250286860,31.28,23.98,23.961,10.0]
[1674250287186,31.28,23.98,23.962,17.96]
[1674250287693,20.0,23.979,23.963,10.0]
[1674250287905,10.0,23.978,23.964,17.96]
[1674250288109,20.0,23.979,23.964,17.96]
[1674250288530,10.0,23.981,23.965,10.0]
[1674250288749,51.28,23.98,23.966,17.96]
[1674250288977,10.0,23.979,23.966,0.96]
[1674250289292,10.0,23.977,23.966,0.96]
[1674250289503,10.0,23.977,23.964,0.96]
[1674250290028,20.0,23.978,23.964,17.96]
[1674250290227,20.0,23.979,23.964,17.96]
[1674250290762,51.28,23.98,23.965,10.0]
[1674250290958,20.0,23.98,23.966,17.96]
[1674250291290,20.0,23.982,23.966,17.96]
[1674250291500,41.28,23.981,23.966,17.96]
[1674250291820,20.0,23.98,23.966,17.96]
[1674250292343,10.0,23.979,23.966,0.96]
[1674250292523,41.28,23.979,23.964,0.96]
[1674250292734,10.0,23.977,23.964,0.96]
[1674250292953,10.0,23.977,23.961,10.0]
[1674250293164,10.0,23.975,23.96,10.0]
[1674250293371,31.29,23.976,23.96,10.0]
[1674250293805,31.29,23.977,23.96,10.0]
[1674250294021,20.0,23.978,23.96,25.8]
[1674250294241,20.0,23.979,23.96,25.8]
[1674250294419,31.28,23.978,23.962,10.0]
[1674250294630,10.0,23.976,23.962,10.0]
[1674250294840,31.28,23.978,23.96,10.0]
[1674250295484,31.28,23.978,23.96,25.87]
[1674250295693,31.28,23.978,23.96,62.65134254]
[1674250296016,20.0,23.979,23.961,70.58587245]
[1674250296426,20.0,23.979,23.962,10.0]
[1674250296634,10.0,23.981,23.963,17.96]
[1674250296850,51.28,23.98,23.963,17.96]
[1674250297060,51.28,23.98,23.964,10.0]
[1674250297405,51.28,23.98,23.965,17.96]
[1674250297600,51.28,23.98,23.966,10.0]
[1674250297806,51.28,23.98,23.967,17.96]
[1674250298211,20.0,23.98,23.967,17.96]
[1674250298755,31.28,23.979,23.967,0.96]
[1674250298952,10.0,23.98,23.965,17.96]
[1674250299180,51.28,23.979,23.965,17.96]
[1674250299573,10.0,23.978,23.965,17.96]
[1674250300519,31.29,23.977,23.965,0.96]
[1674250301065,31.29,23.977,23.963,17.0]
[1674250301066,41.28,23.978,23.964,10.96]
[1674250301290,31.28,23.978,23.965,17.0]
[1674250301490,20.0,23.979,23.966,0.96]
[1674250301705,31.28,23.984,23.966,30.96]
[1674250301925,251.9982,23.985,23.97,23.58]
[1674250302235,220.7182,23.985,23.972,10.0]
[1674250302631,220.7182,23.985,23.973,17.96]
[1674250303279,220.7182,23.985,23.973,0.96]
[1674250304021,220.7182,23.985,23.97,23.58]
[1674250304022,220.7182,23.985,23.967,10.0]
[1674250304334,23.75576951,23.984,23.967,10.0]
[1674250304540,10.0,23.983,23.967,10.0]
[1674250304731,31.28,23.984,23.967,10.0]
[1674250305163,220.7182,23.985,23.967,10.0]
[1674250305584,10.0,23.984,23.967,10.0]
[1674250305788,10.0,23.984,23.966,10.0]
[1674250305789,10.0,23.982,23.966,10.0]
[1674250306002,51.28,23.981,23.963,10.0]
[1674250306321,51.28,23.981,23.962,10.0]
[1674250306643,10.0,23.979,23.961,10.0]
[1674250306851,10.0,23.977,23.961,10.0]
[1674250307066,31.29,23.976,23.961,10.0]
[1674250307490,31.28,23.978,23.961,10.0]
[1674250308008,51.28,23.981,23.961,10.0]
[1674250308228,10.0,23.98,23.961,10.0]
[1674250308413,20.0,23.979,23.962,55.65920578]
[1674250308623,20.0,23.979,23.963,10.0]
[1674250308846,31.28,23.978,23.963,10.0]
[1674250309589,31.28,23.978,23.964,17.0]
[1674250309773,20.0,23.979,23.964,17.0]
[1674250310115,20.0,23.98,23.965,0.96]
[1674250310303,31.28,23.979,23.964,0.96]
[1674250310513,28.5,23.978,23.962,17.96]
[1674250310836,31.29,23.977,23.962,0.96]
[1674250311045,31.29,23.977,23.959,10.0]
[1674250311373,10.0,23.976,23.959,10.0]
[1674250311587,31.29,23.975,23.959,10.0]
[1674250311986,28.5,23.978,23.959,10.0]
[1674250312429,10.0,23.976,23.96,17.0]
[1674250312828,31.29,23.977,23.961,10.0]
[1674250313036,31.29,23.977,23.962,17.96]
[1674250313460,20.0,23.978,23.962,17.96]
[1674250313681,31.28,23.981,23.962,17.96]
[1674250313682,20.0,23.98,23.962,17.96]
[1674250313880,58.28,23.979,23.962,0.96]
[1674250314091,20.0,23.978,23.961,0.96]
[1674250314411,31.29,23.977,23.961,0.96]
[1674250314614,31.29,23.977,23.961,10.96]
[1674250314824,20.0,23.978,23.963,10.0]
[1674250315028,20.0,23.978,23.964,0.96]
[1674250315241,20.0,23.978,23.965,10.0]
[1674250315470,20.0,23.98,23.966,17.96]
[1674250318299,20.0,23.98,23.967,10.0]
[1674250318627,20.0,23.98,23.968,0.96]
[1674250319159,10.0,23.979,23.967,0.96]
[1674250319355,20.0,23.978,23.967,0.96]
[1674250319770,20.0,23.978,23.963,10.0]
[1674250319980,20.0,23.978,23.964,0.96]
[1674250320529,20.0,23.978,23.965,10.0]
[1674250320717,20.0,23.979,23.966,0.96]
[1674250321144,20.0,23.979,23.96,23.58]
[1674250321357,10.0,23.977,23.959,10.0]
[1674250321889,31.29,23.976,23.959,10.0]
[1674250323147,10.0,23.975,23.959,10.0]
[1674250323344,31.29,23.976,23.96,0.96]
[1674250323555,31.29,23.976,23.959,10.0]
[1674250323764,17.0,23.975,23.956,10.0]
[1674250323986,10.0,23.973,23.956,10.0]
[1674250324208,31.29,23.972,23.956,10.0]
[1674250324419,31.29,23.973,23.958,10.0]
[1674250324624,31.29,23.974,23.958,10.0]
[1674250325055,17.0,23.973,23.958,10.0]
[1674250325584,10.0,23.974,23.959,0.96]
[1674250325798,92.04576951,23.973,23.954,10.0]
[1674250326108,0.96,23.972,23.95,10.0]
[1674250326302,10.0,23.97,23.95,10.0]
[1674250326515,68.3,23.969,23.95,10.0]
[1674250326941,10.0,23.968,23.95,10.0]
[1674250327142,31.3,23.967,23.954,0.96]
[1674250327769,31.3,23.968,23.954,0.96]
[1674250327990,31.3,23.968,23.955,10.0]
[1674250328203,31.3,23.968,23.956,0.96]
[1674250328828,20.0,23.969,23.956,17.96]
[1674250329036,31.3,23.968,23.956,17.96]
[1674250329263,20.0,23.97,23.957,10.0]
[1674250329471,20.0,23.97,23.958,0.96]
[1674250329680,20.0,23.97,23.957,10.0]
[1674250330749,31.3,23.969,23.957,10.0]
[1674250331060,37.96,23.968,23.952,10.0]
[1674250331376,41.3,23.967,23.947,10.0]
[1674250331697,37.96,23.966,23.947,10.0]
[1674250331882,31.3,23.965,23.947,10.0]
[1674250332323,31.29,23.97,23.947,10.0]
[1674250332514,17.0,23.969,23.947,10.0]
[1674250332733,20.0,23.968,23.95,15.77]
[1674250332936,51.3,23.968,23.952,10.0]
[1674250333274,51.3,23.968,23.953,0.96]
[1674250333584,17.0,23.967,23.952,10.0]
[1674250333794,31.3,23.966,23.952,10.0]
[1674250334005,17.0,23.965,23.952,10.0]
[1674250334215,31.3,23.964,23.952,10.0]
[1674250334429,31.3,23.964,23.947,10.0]
[1674250334616,31.3,23.964,23.946,10.0]
[1674250334617,17.0,23.963,23.946,10.0]
[1674250334826,52.27,23.962,23.944,10.0]
[1674250335164,10.0,23.96,23.944,10.0]
[1674250335471,49.27,23.959,23.935,10.0]
[1674250335669,20.0,23.958,23.935,10.0]
[1674250335876,49.27,23.957,23.935,10.0]
[1674250336098,73.02576951,23.957,23.935,10.0]
[1674250336432,49.27,23.957,23.935,10.0]
[1674250337039,10.0,23.956,23.935,10.0]
[1674250337249,31.31,23.955,23.935,10.0]
[1674250337474,17.0,23.954,23.935,10.0]
[1674250338089,76.03576951,23.953,23.935,10.0]
[1674250338293,52.28,23.953,23.928,10.0]
[1674250338510,27.0,23.952,23.928,10.0]
[1674250338716,52.28,23.951,23.928,10.0]
[1674250339052,17.0,23.95,23.928,10.0]
[1674250339267,32.28,23.949,23.928,10.0]
[1674250339448,17.0,23.948,23.928,10.0]
[1674250339776,32.28,23.947,23.928,10.0]
[1674250339995,17.0,23.946,23.924,10.0]
[1674250340183,32.29,23.945,23.924,10.0]
[1674250340387,17.0,23.944,23.924,10.0]
[1674250340602,52.29,23.943,23.924,10.0]
[1674250340833,17.0,23.942,23.924,10.0]
[1674250341050,51.33,23.941,23.924,10.0]
[1674250341568,51.33,23.941,23.925,17.96]
[1674250341967,31.33,23.945,23.925,17.96]
[1674250342178,31.32,23.949,23.93,15.7]
[1674250342404,119.3889,23.95,23.931,0.96]
[1674250342615,119.3889,23.95,23.931,27.96]
[1674250343035,119.3889,23.95,23.932,10.0]
[1674250343247,119.3889,23.95,23.933,0.96]
[1674250343248,31.32,23.949,23.933,0.96]
[1674250343460,20.0,23.948,23.933,0.96]
[1674250344382,20.0,23.948,23.934,10.0]
[1674250344593,20.0,23.948,23.935,0.96]
[1674250345245,20.0,23.949,23.935,0.96]
[1674250345448,20.0,23.949,23.935,17.96]
[1674250345649,20.0,23.949,23.936,10.0]
[1674250346070,20.0,23.949,23.937,0.96]
[1674250347553,20.0,23.949,23.937,17.96]
[1674250347981,20.0,23.949,23.938,10.0]
[1674250348174,20.0,23.949,23.939,0.96]
[1674250349235,20.0,23.949,23.938,10.0]
[1674250349449,20.0,23.949,23.939,0.96]
[1674250349965,20.0,23.949,23.938,10.0]
[1674250350290,20.0,23.949,23.936,10.0]
[1674250350503,48.32,23.948,23.936,10.0]
[1674250352273,31.32,23.948,23.928,125.2326]
[1674250352484,31.32,23.948,23.933,0.96]
[1674250352904,10.0,23.947,23.933,0.96]
[1674250353114,31.33,23.946,23.933,0.96]
[1674250353541,31.32,23.948,23.933,0.96]
[1674250353786,31.32,23.948,23.934,10.0]
[1674250353970,17.0,23.947,23.934,10.0]
[1674250354178,31.33,23.946,23.934,10.0]
[1674250354586,31.32,23.948,23.934,10.0]
[1674250355841,31.32,23.948,23.935,0.96]
[1674250357108,31.32,23.948,23.931,10.0]
[1674250357322,31.32,23.948,23.933,0.96]
[1674250357536,20.0,23.949,23.933,0.96]
[1674250357751,31.32,23.948,23.933,0.96]
[1674250358082,31.32,23.948,23.933,17.96]
[1674250358284,20.0,23.949,23.933,17.96]
[1674250358492,20.0,23.955,23.933,17.96]
[1674250358709,31.32,23.954,23.934,10.0]
[1674250358919,20.0,23.953,23.936,10.0]
[1674250359133,20.0,23.953,23.937,17.96]
[1674250359534,27.0,23.952,23.937,0.96]
[1674250359746,51.32,23.951,23.937,0.96]
[1674250359950,20.0,23.951,23.937,0.96]
[1674250360398,20.0,23.951,23.937,17.96]
[1674250360399,51.32,23.951,23.937,17.96]
[1674250360584,20.0,23.951,23.937,0.96]
[1674250360797,10.0,23.95,23.937,0.96]
[1674250361021,10.0,23.95,23.935,17.96]
[1674250361233,20.0,23.949,23.931,10.0]
[1674250361444,31.32,23.948,23.931,10.0]
[1674250362802,51.32,23.949,23.931,10.0]
[1674250363020,51.32,23.949,23.933,17.96]
[1674250363318,31.31,23.955,23.94,23.77]
[1674250363540,109.706,23.957,23.941,17.96]
[1674250363961,109.706,23.957,23.942,10.0]
[1674250364169,109.706,23.957,23.943,17.96]
[1674250364899,109.706,23.957,23.944,10.0]
[1674250365110,109.706,23.957,23.945,0.96]
[1674250365963,31.31,23.96,23.945,0.96]
[1674250366188,112.9453,23.966,23.945,17.96]
[1674250366367,31.3,23.965,23.945,17.96]
[1674250366584,55.05576951,23.965,23.945,17.96]
[1674250366912,10.0,23.963,23.946,10.0]
[1674250367103,51.31,23.962,23.947,17.96]
[1674250367838,10.0,23.961,23.946,10.0]
[1674250368048,20.0,23.96,23.947,0.96]
[1674250368272,20.0,23.96,23.945,0.96]
[1674250368477,10.0,23.959,23.945,0.96]
[1674250368686,10.0,23.957,23.942,10.0]
[1674250368915,10.0,23.957,23.941,10.0]
[1674250369126,10.0,23.957,23.934,61.34]
[1674250369127,17.0,23.956,23.934,30.0]
[1674250369446,31.31,23.955,23.935,10.0]
[1674250369662,10.0,23.954,23.939,10.0]
[1674250370085,31.32,23.953,23.939,10.0]
[1674250370270,10.0,23.952,23.935,10.0]
[1674250370599,31.32,23.953,23.938,0.96]
[1674250371430,31.32,23.953,23.935,10.0]
[1674250371635,37.96,23.952,23.923,10.0]
[1674250371846,41.32,23.951,23.923,10.0]
[1674250372064,10.0,23.949,23.923,10.0]
[1674250372273,69.28,23.948,23.923,10.0]
[1674250372598,10.0,23.947,23.923,10.0]
[1674250372807,31.33,23.946,23.923,10.0]
[1674250373020,37.96,23.945,23.923,10.0]
[1674250373214,31.33,23.944,23.923,10.0]
[1674250373420,37.0,23.943,23.923,10.0]
[1674250373647,31.33,23.942,23.923,10.0]
[1674250373838,37.0,23.941,23.923,10.0]
[1674250374054,32.29,23.94,23.923,10.0]
[1674250374264,37.0,23.939,23.923,10.0]
[1674250374480,31.34,23.938,23.923,10.0]
[1674250374694,31.34,23.938,23.917,5.08189934]
[1674250374695,17.0,23.937,23.917,5.08189934]
[1674250374903,32.3,23.936,23.917,5.08189934]
[1674250375106,17.0,23.935,23.917,5.08189934]
[1674250375319,31.34,23.934,23.917,5.08189934]
[1674250375956,48.34,23.935,23.921,7.5]
[1674250376377,23.75576951,23.934,23.921,7.5]
[1674250376605,68.34,23.933,23.914,10.0]
[1674250379650,31.34,23.933,23.92,0.96]
[1674250379852,31.33,23.94,23.92,41.57]
[1674250380062,20.0,23.939,23.92,41.57]
[1674250380384,31.34,23.938,23.92,41.57]
[1674250380578,20.0,23.939,23.921,10.0]
[1674250380779,117.6635,23.941,23.921,10.0]
[1674250380780,51.33,23.94,23.922,17.96]
[1674250380990,51.33,23.94,23.923,10.0]
[1674250381233,51.33,23.94,23.924,0.96]
[1674250381533,51.33,23.94,23.923,10.0]
[1674250382477,23.75576951,23.939,23.923,10.0]
[1674250382700,51.34,23.938,23.923,10.0]
[1674250382905,112.17428465,23.938,23.923,10.0]
[1674250383104,17.96,23.937,23.923,10.0]
[1674250383316,31.34,23.936,23.921,10.0]
[1674250383538,17.0,23.935,23.921,10.0]
[1674250383730,31.34,23.934,23.921,10.0]
[1674250384060,31.34,23.934,23.915,10.0]
[1674250384277,20.0,23.933,23.915,10.0]
[1674250384591,48.34,23.932,23.915,10.0]
[1674250384787,20.0,23.931,23.915,10.0]
[1674250385411,20.0,23.934,23.915,10.0]
[1674250385638,48.34,23.933,23.915,10.0]
[1674250385855,20.0,23.932,23.915,10.0]
[1674250386043,31.35,23.931,23.92,17.96]
[1674250386255,31.34,23.936,23.92,33.83]